bitfinex/quotes_ETHUSD_20240630
["timestamp","ask_amount","ask_price","bid_price","bid_amount"]
[1719734512126,0.0259637,3399.5,3399.3,2.3753]
[1719734512333,0.0259637,3399.5,3399.3,2.69793]
[1719734512512,1.4105639,3399.8,3399.3,2.69793]
[1719734512704,0.0259637,3399.4,3399.3,2.3753]
[1719734512898,1.41056415,3399.6,3399.3,2.3753]
[1719734513104,0.0259637,3399.4,3399.3,2.3753]
[1719734513306,3.0,3400.0,3399.3,2.69793]
[1719734513616,1.41056217,3399.9,3399.3,2.3753]
[1719734513799,0.0259637,3399.8,3399.3,2.3753]
[1719734515913,1.41063072,3399.9,3399.3,2.3753]
[1719734516115,0.0259637,3399.7,3399.3,2.3753]
[1719734516319,1.41063072,3399.9,3399.3,2.3753]
[1719734516929,0.0259637,3399.8,3399.3,2.3753]
[1719734519104,1.41047333,3399.9,3399.3,2.3753]
[1719734519439,0.02604096,3399.8,3399.3,2.3753]
[1719734521557,1.41048732,3399.9,3399.3,2.3753]
[1719734521757,0.02604096,3399.7,3399.3,2.3753]
[1719734521982,1.41048732,3399.9,3399.3,2.3753]
[1719734522178,0.02604096,3399.6,3399.3,2.3753]
[1719734522498,0.02604096,3399.5,3399.4,0.851]
[1719734522658,1.41048732,3399.9,3399.4,0.851]
[1719734523000,0.02604473,3399.5,3399.3,2.3753]
[1719734523155,1.41048732,3399.9,3399.4,0.851]
[1719734524292,1.40953195,3399.8,3399.4,0.851]
[1719734524459,1.40953195,3399.7,3399.4,0.851]
[1719734524660,1.40953563,3399.6,3399.4,0.851]
[1719734524884,3.0,3400.0,3399.4,0.851]
[1719734525095,1.40958507,3399.9,3399.4,0.851]
[1719734525285,1.40958507,3399.9,3399.4,1.17363]
[1719734527373,1.41013772,3399.8,3399.4,1.17363]
[1719734527694,1.41013772,3399.7,3399.4,1.17363]
[1719734528000,1.41013772,3399.6,3399.5,2.713293]
[1719734528165,7.33,3400.5,3399.7,2.3584]
[1719734528359,1.40986008,3400.4,3400.2,0.851]
[1719734528602,1.40986008,3400.4,3400.0,0.05881576]
[1719734528892,1.40986008,3400.4,3400.1,0.851]
[1719734529469,3.0,3400.4,3400.1,0.851]
[1719734530804,3.0,3400.4,3400.3,0.851]
[1719734531091,4.40965941,3400.4,3400.1,0.851]
[1719734531294,3.0,3400.4,3400.1,0.851]
[1719734531474,1.40987125,3400.3,3400.1,0.851]
[1719734531678,3.0,3400.4,3400.1,0.851]
[1719734533162,3.0,3400.8,3400.1,0.851]
[1719734533364,1.40992218,3400.7,3400.1,1.17194]
[1719734533629,3.0,3400.8,3400.1,0.851]
[1719734533758,1.4099329,3400.7,3400.1,0.851]
[1719734533964,1.43617542,3400.7,3400.1,0.851]
[1719734534340,1.43617542,3400.7,3400.2,2.41721553]
[1719734534594,1.43617542,3400.7,3400.5,0.851]
[1719734534820,0.02624252,3400.7,3400.3,0.851]
[1719734535025,0.02624252,3400.7,3400.3,1.17194]
[1719734535185,1.40991312,3401.0,3400.3,1.17194]
[1719734535491,1.40991312,3401.0,3400.2,2.3584]
[1719734535695,0.02632351,3400.9,3400.2,2.3584]
[1719734535887,2.44762351,3400.9,3400.1,0.851]
[1719734536087,1.40991312,3400.8,3400.1,0.851]
[1719734536289,4.43626111,3400.8,3400.1,0.851]
[1719734536487,1.40991312,3400.7,3400.1,0.851]
[1719734536688,4.40991312,3400.7,3400.1,0.851]
[1719734536874,1.4095576,3400.6,3400.1,0.851]
[1719734537079,1.43590559,3400.6,3400.0,3.2094]
[1719734537266,1.40968754,3400.5,3400.0,3.2094]
[1719734537461,0.02634799,3400.6,3400.0,3.2094]
[1719734537698,1.40965263,3400.7,3400.0,3.2094]
[1719734538462,1.40965263,3400.7,3400.4,0.851]
[1719734538707,1.40965263,3400.7,3400.2,0.851]
[1719734539807,3.0,3400.8,3400.2,0.851]
[1719734540107,1.40965754,3400.7,3400.3,0.32094]
[1719734540304,1.40965754,3400.6,3400.2,0.851]
[1719734540503,3.0,3400.8,3400.2,0.851]
[1719734540708,1.40985858,3400.7,3400.2,0.851]
[1719734540924,3.0,3401.0,3400.3,0.32094]
[1719734541229,1.40968137,3400.9,3400.3,0.32094]
[1719734541769,1.40968137,3400.9,3400.5,2.2805]
[1719734542377,3.0,3401.0,3400.5,2.2805]
[1719734542710,3.0,3401.1,3400.5,2.2805]
[1719734542894,1.40957398,3401.0,3400.5,2.625744]
[1719734543097,4.40957398,3401.0,3400.5,2.625744]
[1719734543440,3.0,3401.0,3400.5,2.625744]
[1719734543716,3.0,3401.1,3400.5,2.625744]
[1719734543874,1.40959579,3401.0,3400.5,2.625744]
[1719734544270,1.40959579,3401.0,3400.6,0.851]
[1719734544474,3.0,3401.1,3400.6,0.851]
[1719734546399,3.0,3401.1,3400.5,2.625744]
[1719734546600,3.0,3401.1,3400.5,2.2805]
[1719734548932,0.02634612,3401.0,3400.5,2.2805]
[1719734549432,0.02634612,3401.0,3400.6,0.851]
[1719734550581,3.0,3401.1,3400.6,0.851]
[1719734550819,0.02640072,3400.9,3400.6,0.851]
[1719734551012,3.0,3401.1,3400.7,0.31315]
[1719734551217,0.0264704,3400.8,3400.7,0.31315]
[1719734551420,3.0,3401.1,3400.7,0.31315]
[1719734551593,0.0264704,3400.8,3400.7,0.31315]
[1719734551915,0.02647605,3400.8,3400.7,0.31315]
[1719734552129,7.33,3401.2,3400.7,0.31315]
[1719734552431,7.33,3401.2,3400.8,0.344465]
[1719734553716,7.33,3401.2,3400.8,1.195465]
[1719734553919,3.0,3401.5,3400.8,1.195465]
[1719734554131,3.0,3401.4,3400.8,1.195465]
[1719734554642,3.0,3401.5,3400.9,2.2901]
[1719734554802,3.0,3401.5,3401.0,0.851]
[1719734555801,3.0,3401.5,3401.2,0.851]
[1719734556329,7.33,3401.6,3401.2,0.851]
[1719734556550,7.33,3401.6,3401.2,1.17099019]
[1719734557212,7.33,3401.6,3401.2,0.31999019]
[1719734559301,7.33,3401.6,3400.9,3.1411]
[1719734559766,7.33,3401.6,3401.1,0.851]
[1719734561213,7.33,3401.6,3401.3,0.851]
[1719734561408,7.33,3401.6,3401.4,0.32476]
[1719734562734,7.33,3401.6,3401.5,2.3966]
[1719734562935,3.0,3401.9,3401.5,3.2476]
[1719734563243,3.0,3402.1,3401.8,0.851]
[1719734564019,0.02668502,3402.0,3401.8,0.851]
[1719734565011,7.33,3402.2,3401.8,0.851]
[1719734565207,0.02668502,3401.9,3401.8,0.851]
[1719734565445,7.33,3402.2,3401.8,1.1816389]
[1719734565646,0.02668502,3401.9,3401.8,1.1816389]
[1719734565814,7.33,3402.2,3401.8,1.1816389]
[1719734566015,0.02668502,3401.9,3401.8,1.1816389]
[1719734566247,7.33,3402.2,3401.8,1.1816389]
[1719734566447,0.02668502,3401.9,3401.8,1.1816389]
[1719734566912,7.33,3402.2,3401.8,1.1816389]
[1719734567112,0.02668502,3401.9,3401.8,1.1816389]
[1719734567338,7.33,3402.2,3401.8,1.1816389]
[1719734567533,0.02668502,3401.9,3401.8,1.1816389]
[1719734567734,7.33,3402.2,3401.8,1.1816389]
[1719734568051,0.02668502,3401.9,3401.8,1.1816389]
[1719734568252,7.33,3402.2,3401.8,1.1816389]
[1719734568462,0.02668502,3401.9,3401.8,1.1816389]
[1719734568764,0.02668502,3402.1,3401.8,1.1816389]
[1719734568975,7.33,3402.2,3401.8,1.1816389]
[1719734569176,0.02668502,3402.0,3401.8,1.1816389]
[1719734569354,7.33,3402.2,3401.8,1.1816389]
[1719734569526,0.02668502,3401.9,3401.8,1.1816389]
[1719734569726,7.33,3402.2,3401.8,1.1816389]
[1719734569926,0.02668502,3401.9,3401.8,1.1816389]
[1719734570175,7.33,3402.2,3401.8,1.1816389]
[1719734570413,0.02668502,3401.9,3401.8,1.1816389]
[1719734570572,7.33,3402.2,3401.8,1.1816389]
[1719734571041,7.33,3402.2,3402.0,0.851]
[1719734571042,0.02668502,3402.1,3402.0,0.851]
[1719734572348,0.02668502,3402.1,3401.8,1.24042535]
[1719734573069,0.02668502,3402.1,3401.9,2.3836]
[1719734573984,0.02668502,3402.1,3402.0,0.851]
[1719734574777,0.02668502,3402.1,3401.9,2.3836]
[1719734575237,3.0,3402.6,3401.9,2.3836]
[1719734575431,0.02680732,3402.0,3401.9,2.3836]
[1719734575676,3.0,3402.6,3401.9,2.70706]
[1719734575873,9.7469,3402.7,3401.9,2.70706]
[1719734575874,0.02680732,3402.0,3401.9,0.32346]
[1719734576031,0.851,3402.5,3401.6,3.2346]
[1719734576471,0.02680732,3402.4,3401.6,3.2346]
[1719734576775,0.02680732,3402.4,3401.6,2.3836]
[1719734580066,3.2555,3402.3,3401.2,2.3836]
[1719734580393,0.851,3402.1,3401.2,3.6523977]
[1719734580571,0.851,3402.1,3401.2,3.2346]
[1719734580750,3.2555,3402.3,3401.2,3.2346]
[1719734580951,0.02683932,3402.0,3401.3,0.32346]
[1719734581264,3.2555,3402.3,3401.3,0.32346]
[1719734581458,0.02683932,3401.9,3401.3,0.32346]
[1719734581649,0.02683932,3401.8,3401.4,0.270706]
[1719734582050,2.306,3402.2,3400.8,1.178063]
[1719734582287,0.02683932,3401.7,3400.8,0.851]
[1719734582498,4.40787218,3402.1,3400.8,0.851]
[1719734582653,0.851,3401.8,3400.8,1.16166]
[1719734582988,0.02689577,3401.7,3400.8,1.16166]
[1719734583482,0.02689577,3401.7,3401.2,0.851]
[1719734583883,0.851,3401.9,3401.0,0.851]
[1719734584085,0.02686191,3401.6,3401.0,0.851]
[1719734584388,0.851,3401.9,3401.0,0.851]
[1719734584589,0.02686191,3401.5,3401.0,0.851]
[1719734584896,1.40762403,3402.0,3401.0,0.851]
[1719734585396,0.02679417,3401.9,3401.0,0.851]
[1719734586106,0.02679417,3401.9,3401.4,0.851]
[1719734586473,2.306,3402.2,3401.4,0.851]
[1719734586994,5.306,3402.2,3401.4,0.851]
[1719734587304,0.02587153,3402.1,3401.4,0.851]
[1719734589564,0.02587153,3402.1,3401.2,2.4178]
[1719734589565,0.02587153,3402.1,3401.2,3.2688]
[1719734589859,1.43311473,3402.1,3401.3,0.24178]
[1719734590074,3.02587153,3402.1,3401.3,0.24178]
[1719734590268,3.87687153,3402.1,3401.3,0.24178]
[1719734590487,0.851,3401.9,3401.0,0.851]
[1719734590879,4.40719351,3402.0,3401.0,0.851]
[1719734591204,0.02591489,3401.8,3401.0,0.851]
[1719734591417,3.851,3402.1,3401.0,0.851]
[1719734591580,0.02591489,3401.7,3401.0,0.851]
[1719734591911,0.02591489,3401.6,3401.0,0.851]
[1719734592314,1.40717133,3402.0,3401.0,0.851]
[1719734592609,0.02591489,3401.5,3401.0,0.851]
[1719734592797,1.40717133,3402.0,3401.0,0.851]
[1719734592970,0.02591489,3401.4,3401.0,0.851]
[1719734593172,0.851,3401.9,3401.0,0.851]
[1719734593512,0.02591489,3401.3,3401.0,0.851]
[1719734593713,2.25817133,3401.9,3401.0,0.851]
[1719734593909,1.43308622,3401.8,3401.0,0.851]
[1719734594109,0.851,3401.9,3401.0,0.851]
[1719734594272,0.02591489,3401.8,3401.0,0.851]
[1719734594788,0.02591489,3401.7,3401.0,0.851]
[1719734595117,2.25847264,3402.0,3401.0,0.851]
[1719734595290,0.02591489,3401.6,3401.0,0.851]
[1719734595499,0.02591489,3401.6,3401.0,1.18336]
[1719734595700,0.02591489,3401.5,3401.0,1.18336]
[1719734596087,1.40745433,3401.7,3401.0,1.18336]
[1719734596401,7.33,3401.9,3401.0,1.18336]
[1719734596601,0.02591489,3401.6,3401.0,1.18336]
[1719734596831,0.02591489,3401.6,3401.1,0.365596]
[1719734597127,0.02591489,3401.5,3401.1,0.365596]
[1719734597632,0.02591489,3401.4,3401.1,0.365596]
[1719734597995,1.40734755,3401.8,3401.1,0.365596]
[1719734598393,0.02591489,3401.7,3401.1,0.365596]
[1719734600030,0.02591489,3401.7,3401.2,1.2199196]
[1719734600976,0.02591489,3401.7,3401.5,0.851]
[1719734601145,7.33,3401.9,3401.5,0.851]
[1719734601482,0.02590736,3401.6,3401.5,0.851]
[1719734601644,3.0,3402.1,3401.5,0.851]
[1719734601968,1.40718467,3402.0,3401.5,0.851]
[1719734602173,3.0,3402.2,3401.5,0.851]
[1719734602476,0.02590736,3402.0,3401.6,0.31779]
[1719734602641,0.02590736,3402.0,3401.5,0.851]
[1719734602642,1.43314155,3402.1,3401.5,0.851]
[1719734602845,1.40720972,3402.1,3401.5,0.851]
[1719734603180,0.02593183,3402.0,3401.5,0.851]
[1719734605192,0.02593183,3402.0,3401.3,2.3269]
[1719734606378,0.02593183,3402.0,3401.3,2.64469]
[1719734606728,0.02593183,3402.0,3401.3,2.70348191]
[1719734607564,0.02593183,3402.0,3401.3,2.64469]
[1719734608108,0.851,3401.9,3400.9,0.851]
[1719734608245,0.851,3401.9,3400.9,3.2886]
[1719734608437,2.25864711,3401.9,3400.9,3.2886]
[1719734608636,0.02602041,3401.8,3400.9,3.61746]
[1719734613282,0.02602041,3401.8,3401.3,0.851]
[1719734615093,0.02602041,3401.8,3400.9,2.76646]
[1719734615381,0.02602041,3401.8,3400.9,3.61746]
[1719734617483,2.2862,3401.7,3400.9,3.61746]
[1719734617722,1.4080275,3401.6,3400.9,2.76646]
[1719734617910,1.40827769,3401.5,3401.0,0.851]
[1719734618119,1.40827769,3401.4,3401.0,0.851]
[1719734618333,2.2862,3401.7,3401.0,0.851]
[1719734618496,0.02599401,3401.3,3401.0,0.851]
[1719734618702,0.02599401,3401.3,3401.0,1.212746]
[1719734619004,0.02599401,3401.2,3401.0,1.212746]
[1719734619201,1.40829506,3401.6,3401.0,1.212746]
[1719734619415,0.02599401,3401.1,3401.0,1.212746]
[1719734619602,1.40829506,3401.6,3401.0,0.851]
[1719734619805,0.02599401,3401.1,3401.0,0.851]
[1719734620031,1.40829506,3401.6,3401.0,0.851]
[1719734620244,0.02599401,3401.1,3401.0,0.851]
[1719734620529,1.40829506,3401.6,3401.0,1.17986]
[1719734620733,0.02599401,3401.1,3401.0,0.851]
[1719734620941,1.40829506,3401.6,3401.0,0.851]
[1719734621102,0.02599401,3401.1,3401.0,0.851]
[1719734621586,1.40829506,3401.6,3401.0,0.851]
[1719734621791,0.02599401,3401.1,3401.0,0.851]
[1719734621987,1.40829506,3401.6,3401.0,1.17986]
[1719734622207,0.02599401,3401.1,3401.0,0.851]
[1719734622543,1.40829506,3401.6,3401.0,0.851]
[1719734622749,0.02599401,3401.1,3401.0,0.851]
[1719734623306,1.40829506,3401.6,3401.0,0.851]
[1719734623557,0.02599401,3401.1,3401.0,0.851]
[1719734623755,1.40829506,3401.6,3401.0,1.17986]
[1719734623939,0.02599401,3401.5,3401.0,0.851]
[1719734624123,1.40829506,3401.6,3401.0,0.851]
[1719734624318,0.02599401,3401.4,3401.0,0.851]
[1719734625057,0.02599401,3401.3,3401.0,0.851]
[1719734625407,1.40824478,3401.6,3400.6,2.3829]
[1719734625612,0.02599401,3401.2,3400.8,0.851]
[1719734625838,1.40824478,3401.6,3400.8,0.851]
[1719734626081,1.40824478,3401.6,3401.1,0.851]
[1719734626082,0.02599401,3401.5,3401.1,0.851]
[1719734626239,0.02599401,3401.5,3401.1,3.2365]
[1719734626439,1.40824478,3401.8,3401.1,3.2365]
[1719734626667,0.02599401,3401.7,3401.1,3.2365]
[1719734626867,0.02599401,3401.7,3401.1,3.56603059]
[1719734627077,0.02599401,3401.7,3401.3,0.851]
[1719734627343,1.43380796,3401.7,3401.3,0.851]
[1719734627562,1.4338061,3401.6,3401.3,0.851]
[1719734627884,0.02599781,3401.6,3401.3,0.851]
[1719734628081,0.02599781,3401.6,3401.3,1.20760306]
[1719734628284,1.40782928,3401.8,3401.3,1.20760306]
[1719734628497,0.02599781,3401.5,3401.3,0.851]
[1719734628937,0.02599781,3401.4,3401.3,0.851]
[1719734629289,1.40782928,3401.8,3401.1,3.2365]
[1719734629446,0.02599781,3401.4,3401.2,0.23855]
[1719734629646,1.40782928,3401.8,3401.1,3.2365]
[1719734629873,0.02599781,3401.7,3401.1,3.2365]
[1719734630798,1.40804299,3401.8,3401.1,3.2365]
[1719734631412,0.02599781,3401.7,3401.1,3.2365]
[1719734631696,0.02599781,3401.7,3401.2,0.32365]
[1719734631899,0.02599781,3401.7,3401.3,0.851]
[1719734632455,1.40804299,3401.8,3401.3,0.851]
[1719734632687,0.02599781,3401.7,3401.3,0.851]
[1719734633193,1.40804299,3401.8,3401.3,0.90979781]
[1719734633194,0.02599781,3401.6,3401.3,0.90979781]
[1719734633412,1.40804299,3401.8,3401.4,0.356015]
[1719734633693,0.02602795,3401.7,3401.4,0.356015]
[1719734634069,1.40841794,3401.8,3401.4,0.356015]
[1719734634254,0.02602795,3401.6,3401.4,0.356015]
[1719734634454,1.40841794,3401.8,3401.4,0.356015]
[1719734634654,0.02602795,3401.7,3401.4,0.356015]
[1719734634899,1.40841794,3401.8,3401.4,0.41480733]
[1719734635085,0.02602795,3401.6,3401.4,0.41480733]
[1719734635290,1.40841794,3401.8,3401.4,0.41480733]
[1719734635466,0.02602795,3401.5,3401.4,0.41480733]
[1719734635675,1.40841794,3401.8,3401.4,0.41480733]
[1719734636187,0.02602795,3401.7,3401.4,0.41480733]
[1719734636506,1.40841794,3401.8,3401.4,0.41480733]
[1719734636811,7.33,3401.9,3401.5,0.851]
[1719734637103,1.43442979,3401.8,3401.6,2.3855]
[1719734637258,0.02602795,3401.8,3401.6,2.3855]
[1719734637581,0.02606751,3401.7,3401.6,2.3855]
[1719734637892,1.40840764,3402.1,3401.6,2.3855]
[1719734638064,0.02607505,3401.7,3401.6,2.3855]
[1719734638271,1.40840764,3402.1,3401.6,2.3855]
[1719734638495,0.02607505,3401.7,3401.6,2.3855]
[1719734638669,1.40840764,3402.1,3401.6,2.70915]
[1719734638865,0.02607505,3401.7,3401.6,2.3855]
[1719734639073,1.40840764,3402.1,3401.6,3.29529008]
[1719734639365,1.40840764,3402.1,3401.8,0.851]
[1719734639974,1.40890858,3402.0,3401.8,0.851]
[1719734640176,1.40890858,3401.9,3401.8,0.851]
[1719734640406,7.33,3402.3,3401.8,0.851]
[1719734640606,1.40895161,3402.2,3401.8,0.851]
[1719734642123,1.40895161,3402.2,3401.9,0.851]
[1719734642286,7.33,3402.3,3401.9,0.851]
[1719734642493,1.40893615,3402.2,3401.9,0.851]
[1719734642677,7.33,3402.3,3401.9,0.851]
[1719734643233,7.33,3402.3,3401.7,0.90978978]
[1719734643234,1.4089689,3402.2,3401.7,0.90978978]
[1719734643518,1.4089689,3402.2,3401.7,1.23931876]
[1719734643718,1.4089689,3402.1,3401.7,1.23931876]
[1719734643920,3.0,3402.5,3401.7,0.90978978]
[1719734644219,1.40905278,3402.4,3401.7,0.90978978]
[1719734644423,1.40905278,3402.3,3401.7,0.90978978]
[1719734644590,1.40905278,3402.2,3401.7,0.90978978]
[1719734644790,1.40904237,3402.1,3401.7,0.38831876]
[1719734645132,3.851,3402.6,3401.7,0.851]
[1719734645279,1.40906681,3402.5,3401.7,0.851]
[1719734645478,1.40908041,3402.4,3401.7,0.851]
[1719734645678,1.40908041,3402.3,3401.7,1.17465]
[1719734645903,1.40908041,3402.2,3401.7,1.17465]
[1719734646103,1.40908041,3402.1,3401.7,1.17465]
[1719734646343,3.851,3402.6,3401.8,0.356015]
[1719734646553,1.40907307,3402.5,3401.8,0.356015]
[1719734647032,3.1573,3402.4,3401.5,0.851]
[1719734647220,1.40907307,3402.3,3401.5,0.851]
[1719734647417,1.40907307,3402.3,3401.6,0.32732]
[1719734648528,1.4090873,3402.2,3401.6,0.32732]
[1719734648739,1.4090873,3402.1,3401.6,0.32732]
[1719734648956,3.1573,3402.4,3401.6,0.32732]
[1719734649116,1.40911107,3402.3,3401.6,0.32732]
[1719734653911,0.851,3402.0,3400.5,2.4222]
[1719734654111,0.851,3401.8,3400.9,0.851]
[1719734654550,2.3063,3402.0,3401.1,0.851]
[1719734654551,3.1573,3402.0,3401.1,0.851]
[1719734654727,0.02612403,3401.7,3401.2,2.4222]
[1719734654935,3.1573,3402.0,3401.2,2.4222]
[1719734655556,0.02612403,3401.9,3401.2,2.4222]
[1719734656547,0.02612403,3401.9,3401.3,0.05879624]
[1719734656847,0.02612403,3401.9,3401.5,2.4222]
[1719734657843,0.02612403,3401.9,3401.3,3.2732]
[1719734658049,0.02612403,3401.9,3401.4,0.32732]
[1719734658247,0.02612403,3401.9,3401.3,3.2732]
[1719734659355,7.33,3402.1,3401.3,3.2732]
[1719734659551,0.02606187,3401.8,3401.3,3.2732]
[1719734659776,7.33,3402.1,3401.3,3.2732]
[1719734660263,0.02606187,3402.0,3401.4,0.32732]
[1719734661233,0.02606187,3402.0,3401.3,3.2732]
[1719734661751,0.02606187,3402.0,3401.3,0.851]
[1719734661933,2.3494,3401.9,3401.3,0.851]
[1719734662532,0.02606187,3401.8,3401.3,0.851]
[1719734664219,1.43543952,3401.8,3401.3,0.851]
[1719734665438,0.02606187,3401.8,3401.3,0.851]
[1719734665783,1.43542001,3401.8,3401.3,1.18236]
[1719734665982,1.40935669,3401.7,3401.3,1.18236]
[1719734666176,0.02606187,3401.8,3401.3,1.18236]
[1719734666500,0.02606187,3401.7,3401.3,1.18236]
[1719734666834,1.40936734,3401.8,3401.3,1.18236]
[1719734667037,0.02606187,3401.6,3401.3,1.18236]
[1719734667234,1.40936734,3401.8,3401.3,1.18236]
[1719734667475,0.02606187,3401.5,3401.3,1.18236]
[1719734667634,1.40936734,3401.8,3401.4,0.364496]
[1719734667839,0.02608823,3401.4,3401.3,0.90979332]
[1719734668073,1.40936734,3401.8,3401.3,0.90979332]
[1719734668296,0.02608823,3401.4,3401.3,0.90979332]
[1719734668449,9.5834,3402.1,3401.3,0.90979332]
[1719734668650,0.02608823,3401.4,3401.3,0.90979332]
[1719734668975,1.40942983,3402.0,3401.3,1.24703265]
[1719734669134,0.02608823,3401.4,3401.3,1.24703265]
[1719734669335,1.40942983,3402.0,3401.3,0.851]
[1719734669575,0.02609577,3401.4,3401.3,0.851]
[1719734669876,0.02609577,3401.4,3401.3,3.1038]
[1719734670081,1.40942983,3402.0,3401.3,3.41418]
[1719734670282,0.02609577,3401.4,3401.3,3.41418]
[1719734670455,1.40942983,3402.0,3401.3,3.41418]
[1719734670654,1.40942983,3402.0,3401.5,0.851]
[1719734670883,1.40942983,3402.0,3401.5,1.19829734]
[1719734671711,7.33,3402.1,3401.5,0.34729734]
[1719734671917,1.40931886,3402.0,3401.4,3.1038]
[1719734674373,1.40931886,3402.0,3401.4,2.2528]
[1719734674576,1.40931886,3402.0,3401.4,3.1038]
[1719734674873,7.33,3402.1,3401.4,3.41418]
[1719734675086,1.40932485,3402.0,3401.4,3.41418]
[1719734676705,1.40932485,3402.0,3401.4,3.1038]
[1719734676910,1.40932485,3402.0,3401.4,2.2528]
[1719734678724,7.33,3402.1,3401.4,2.2528]
[1719734678901,1.40932474,3402.0,3401.4,2.2528]
[1719734680601,1.40932474,3402.0,3401.4,3.1038]
[1719734681298,7.33,3402.1,3401.4,3.1038]
[1719734681498,1.40932787,3402.0,3401.4,3.1038]
[1719734683934,0.02610707,3401.9,3401.4,3.1038]
[1719734685746,0.02610707,3401.9,3401.4,2.2528]
[1719734687857,1.43549973,3401.9,3401.4,2.2528]
[1719734688041,1.40939266,3401.8,3401.4,2.2528]
[1719734688215,1.40939266,3401.7,3401.4,2.2528]
[1719734688418,1.40939266,3401.6,3401.4,2.2528]
[1719734688615,1.43548656,3401.5,3401.4,2.2528]
[1719734689020,0.0260939,3401.5,3401.4,2.2528]
[1719734689219,1.40939266,3402.0,3401.4,2.2528]
[1719734689419,0.0260939,3401.9,3401.4,2.2528]
[1719734690922,1.43549379,3401.9,3401.4,2.2528]
[1719734691127,1.40939989,3401.8,3401.4,2.2528]
[1719734691321,7.33,3402.1,3401.4,2.2528]
[1719734691322,1.40939734,3401.7,3401.4,2.2528]
[1719734691540,1.40939734,3401.6,3401.4,2.2528]
[1719734691751,1.40939734,3401.5,3401.4,2.56318]
[1719734692256,1.43549124,3401.5,3401.4,2.56318]
[1719734693431,0.0260939,3401.5,3401.4,3.41418]
[1719734693632,1.40919907,3402.0,3401.4,3.41418]
[1719734693857,0.0260939,3401.5,3401.4,3.1038]
[1719734694055,1.4091946,3401.9,3401.4,3.1038]
[1719734694233,7.33,3402.1,3401.4,3.1038]
[1719734694234,0.0260939,3401.5,3401.4,3.1038]
[1719734694434,1.4091946,3401.7,3401.4,3.41418]
[1719734694768,7.33,3402.1,3401.4,3.41418]
[1719734694769,0.0260939,3401.5,3401.4,3.41418]
[1719734695064,0.0260939,3401.5,3401.4,3.1038]
[1719734695234,1.40927024,3402.0,3401.4,3.1038]
[1719734695431,0.0260939,3401.5,3401.4,3.1038]
[1719734695631,1.40927024,3402.0,3401.4,3.1038]
[1719734695833,0.0260939,3401.9,3401.4,3.1038]
[1719734696034,0.0260939,3401.9,3401.4,3.41418]
[1719734696231,0.0260939,3401.9,3401.6,0.851]
[1719734696436,0.0260939,3401.9,3401.7,2.2862]
[1719734697446,1.40911796,3401.9,3401.7,2.2862]
[1719734697647,1.43522879,3401.8,3401.7,2.2862]
[1719734698876,1.43522879,3401.8,3401.7,2.630958]
[1719734700569,1.43522922,3401.8,3401.7,2.630958]
[1719734703052,0.02611083,3401.8,3401.7,2.630958]
[1719734703977,1.43521926,3401.8,3401.7,2.630958]
[1719734706169,0.02611083,3401.8,3401.7,2.630958]
[1719734706910,1.43522074,3401.8,3401.7,2.630958]
[1719734709114,0.02611083,3401.8,3401.7,2.630958]
[1719734709276,7.33,3402.1,3401.7,2.630958]
[1719734709479,1.40909961,3402.0,3401.8,1.1991958]
[1719734712310,1.40909961,3401.9,3401.8,1.1991958]
[1719734712518,1.40907823,3401.9,3401.8,0.851]
[1719734713012,1.40907823,3402.3,3401.8,0.851]
[1719734713987,0.02608823,3402.2,3401.8,0.05878785]
[1719734714196,1.43516646,3402.2,3402.1,0.851]
[1719734714378,1.40907823,3402.2,3402.1,3.2972]
[1719734714587,0.02608823,3402.2,3402.1,3.2972]
[1719734715415,1.40879639,3402.4,3402.1,3.2972]
[1719734715638,0.02608823,3402.2,3402.1,3.2972]
[1719734715793,1.40879847,3402.4,3402.1,3.2972]
[1719734716027,7.33,3402.5,3402.1,2.77592]
[1719734716228,7.33,3402.5,3402.3,0.851]
[1719734716440,0.02608823,3402.4,3402.3,0.851]
[1719734716763,7.33,3402.5,3402.3,0.851]
[1719734717745,2.3462,3402.9,3402.3,0.851]
[1719734717946,1.40870564,3402.8,3402.3,0.851]
[1719734718974,1.40869966,3402.7,3402.4,2.4462]
[1719734719112,3.0,3402.9,3402.4,2.4462]
[1719734719313,1.4086891,3402.8,3402.4,2.4462]
[1719734719566,1.4086891,3402.8,3402.3,0.851]
[1719734722211,3.0,3402.9,3402.3,0.851]
[1719734722212,1.40876946,3402.7,3402.3,0.851]
[1719734722447,3.0,3402.9,3402.3,0.851]
[1719734722748,1.40875641,3402.8,3402.0,2.4541]
[1719734722933,1.40875641,3402.8,3402.2,0.851]
[1719734725375,3.0,3402.9,3402.2,0.851]
[1719734725666,1.40876416,3402.8,3402.2,0.851]
[1719734727420,1.40876416,3402.8,3402.3,2.2879]
[1719734728523,3.0,3402.9,3402.3,2.2879]
[1719734729166,1.40876162,3402.8,3402.3,2.2879]
[1719734731574,3.0,3402.9,3402.2,0.851]
[1719734731575,1.4088352,3402.7,3402.2,0.851]
[1719734731745,3.0,3402.9,3402.2,0.851]
[1719734732068,1.40884316,3402.8,3402.2,0.851]
[1719734733233,1.40884316,3402.8,3402.3,2.3174]
[1719734733767,7.33,3403.0,3402.6,0.851]
[1719734733941,7.33,3403.0,3402.7,2.3174]
[1719734735468,7.33,3403.0,3402.6,0.851]
[1719734735763,21.81254026,3403.4,3402.6,0.851]
[1719734735942,4.40860067,3403.3,3402.6,0.851]
[1719734736169,1.40860067,3403.2,3402.6,0.851]
[1719734737764,1.40861388,3403.1,3402.6,0.851]
[1719734738098,3.0,3403.3,3402.6,0.851]
[1719734738284,1.40861298,3403.2,3402.6,0.31684]
[1719734738477,1.40861298,3403.2,3402.5,2.3174]